fUST/lending_fUST_20260602
["ID","MTS","AMOUNT","RATE_DAILY","PERIOD"]
[423740266,1780360245000,-11991.94,0.0001452,2]
[423740207,1780360245000,-957.8,0.00014246,2]
[423740268,1780360245000,-226.71451431,0.0001452,2]
[423740302,1780360245000,-500.0,0.0001452,2]
[423740309,1780360245000,-500.0,0.0001452,2]
[423740310,1780360245000,-1836.0,0.00014529,2]
[423740305,1780360245000,-845.4,0.0001452,2]
[423740312,1780360245000,-3630.0,0.00014529,2]
[423740324,1780360245000,-200.0,0.00014793,2]
[423740323,1780360245000,-516.47226335,0.00014775,2]
[423740322,1780360245000,-516.47226335,0.00014741,2]
[423740311,1780360245000,-2205.0,0.00014529,2]
[423740313,1780360245000,-444.0,0.00014529,2]
[423740320,1780360245000,-516.47226335,0.00014718,2]
[423740314,1780360245000,-743.0,0.00014529,2]
[423740316,1780360245000,-516.47226335,0.00014678,2]
[423740315,1780360245000,-185.0,0.00014529,2]
[423740307,1780360245000,-600.13,0.0001452,2]
[423740318,1780360245000,-155.393,0.00014714,2]
[423740319,1780360245000,-220.036,0.00014714,2]
[423740325,1780360245000,-500.0,0.00014794,2]
[423740334,1780360245000,-186.47,0.00014794,2]
[423740328,1780360245000,-500.0,0.00014794,2]
[423740327,1780360245000,-500.0,0.00014794,2]
[423740333,1780360245000,-500.0,0.00014794,2]
[423740329,1780360245000,-500.0,0.00014794,2]
[423740335,1780360245000,-1034.24,0.00014794,2]
[423740336,1780360245000,-511.53,0.00014794,2]
[423740330,1780360245000,-918.08,0.00014794,2]
[423740332,1780360245000,-500.0,0.00014794,2]
[423740331,1780360245000,-814.52,0.00014794,2]
[423740337,1780360245000,-500.0,0.00014794,2]
[423740269,1780360245000,-500.0,0.0001452,2]
[423740321,1780360245000,-516.47226335,0.00014733,2]
[423740308,1780360245000,-807.79,0.0001452,2]
[423740317,1780360245000,-516.47226335,0.00014704,2]
[423740303,1780360245000,-500.0,0.0001452,2]
[423740286,1780360245000,-5578.401852,0.0001452,2]
[423740281,1780360245000,-500.0,0.0001452,2]
[423740279,1780360245000,-1819.03,0.0001452,2]
[423740283,1780360245000,-5578.401852,0.0001452,2]
[423740284,1780360245000,-5578.401852,0.0001452,2]
[423740280,1780360245000,-500.0,0.0001452,2]
[423740296,1780360245000,-1548.04,0.0001452,2]
[423740278,1780360245000,-957.8,0.0001452,2]
[423740277,1780360245000,-500.0,0.0001452,2]
[423740276,1780360245000,-2426.39,0.0001452,2]
[423740267,1780360245000,-500.0,0.0001452,2]
[423740270,1780360245000,-2420.62,0.0001452,2]
[423740306,1780360245000,-500.0,0.0001452,2]
[423740265,1780360245000,-500.0,0.0001452,2]
[423740275,1780360245000,-892.13,0.0001452,2]
[423740285,1780360245000,-2425.26,0.0001452,2]
[423740282,1780360245000,-585.91,0.0001452,2]
[423740304,1780360245000,-500.0,0.0001452,2]
[423740287,1780360245000,-5578.401846,0.0001452,2]
[423740299,1780360245000,-563.81,0.0001452,2]
[423740301,1780360245000,-500.0,0.0001452,2]
[423740298,1780360245000,-737.19,0.0001452,2]
[423740293,1780360245000,-1562.39,0.0001452,2]
[423740291,1780360245000,-598.65,0.0001452,2]
[423740297,1780360245000,-193.94,0.0001452,2]
[423740294,1780360245000,-500.0,0.0001452,2]
[423740290,1780360245000,-500.0,0.0001452,2]
[423740289,1780360245000,-638.97,0.0001452,2]
[423740295,1780360245000,-770.54,0.0001452,2]
[423740288,1780360245000,-500.0,0.0001452,2]
[423740292,1780360245000,-588.59,0.0001452,2]
[423740300,1780360245000,-500.0,0.0001452,2]
[423740395,1780360246000,-500.0,0.00015068,2]
[423740381,1780360246000,-500.0,0.00015068,2]
[423740390,1780360246000,-1034.24,0.00015068,2]
[423740384,1780360246000,-372.93,0.00015068,2]
[423740385,1780360246000,-918.08,0.00015068,2]
[423740383,1780360246000,-500.0,0.00015068,2]
[423740373,1780360246000,-500.0,0.00014794,2]
[423740375,1780360246000,-807.79,0.00014794,2]
[423740370,1780360246000,-500.0,0.00014794,2]
[423740368,1780360246000,-500.0,0.00014794,2]
[423740376,1780360246000,-500.0,0.00014794,2]
[423740371,1780360246000,-500.0,0.00014794,2]
[423740388,1780360246000,-500.0,0.00015068,2]
[423740374,1780360246000,-600.13,0.00014794,2]
[423740382,1780360246000,-500.0,0.00015068,2]
[423740403,1780360246000,-957.8,0.00015068,2]
[423740392,1780360246000,-500.0,0.00015068,2]
[423740391,1780360246000,-511.53,0.00015068,2]
[423740387,1780360246000,-814.52,0.00015068,2]
[423740393,1780360246000,-500.0,0.00015068,2]
[423740394,1780360246000,-500.0,0.00015068,2]
[423740397,1780360246000,-500.0,0.00015068,2]
[423740407,1780360246000,-2425.26,0.00015068,2]
[423740409,1780360246000,-638.97,0.00015068,2]
[423740408,1780360246000,-500.0,0.00015068,2]
[423740399,1780360246000,-623.41,0.00015068,2]
[423740405,1780360246000,-500.0,0.00015068,2]
[423740404,1780360246000,-1819.03,0.00015068,2]
[423740396,1780360246000,-11991.94,0.00015068,2]
[423740372,1780360246000,-845.4,0.00014794,2]
[423740389,1780360246000,-500.0,0.00015068,2]
[423740377,1780360246000,-516.47226335,0.00014817,2]
[423740340,1780360246000,-346.27,0.00014794,2]
[423740380,1780360246000,-344.46243596,0.00015067,2]
[423740401,1780360246000,-2426.39,0.00015068,2]
[423740338,1780360246000,-500.0,0.00014794,2]
[423740339,1780360246000,-500.0,0.00014794,2]
[423740342,1780360246000,-11991.94,0.00014794,2]
[423740352,1780360246000,-292.4,0.00014794,2]
[423740344,1780360246000,-500.0,0.00014794,2]
[423740341,1780360246000,-500.0,0.00014794,2]
[423740345,1780360246000,-2420.62,0.00014794,2]
[423740348,1780360246000,-2426.39,0.00014794,2]
[423740343,1780360246000,-245.05,0.00014794,2]
[423740351,1780360246000,-1819.03,0.00014794,2]
[423740349,1780360246000,-500.0,0.00014794,2]
[423740347,1780360246000,-892.13,0.00014794,2]
[423740346,1780360246000,-623.41,0.00014794,2]
[423740350,1780360246000,-957.8,0.00014794,2]
[423740355,1780360246000,-2425.26,0.00014794,2]
[423740365,1780360246000,-737.19,0.00014794,2]
[423740378,1780360246000,-516.47226335,0.0001483,2]
[423740369,1780360246000,-500.0,0.00014794,2]
[423740362,1780360246000,-500.0,0.00014794,2]
[423740363,1780360246000,-770.54,0.00014794,2]
[423740364,1780360246000,-1548.04,0.00014794,2]
[423740361,1780360246000,-1562.39,0.00014794,2]
[423740379,1780360246000,-516.47226335,0.00014889,2]
[423740360,1780360246000,-588.59,0.00014794,2]
[423740357,1780360246000,-638.97,0.00014794,2]
[423740354,1780360246000,-585.91,0.00014794,2]
[423740356,1780360246000,-500.0,0.00014794,2]
[423740359,1780360246000,-598.65,0.00014794,2]
[423740367,1780360246000,-500.0,0.00014794,2]
[423740366,1780360246000,-563.81,0.00014794,2]
[423740358,1780360246000,-500.0,0.00014794,2]
[423740400,1780360246000,-892.13,0.00015068,2]
[423740353,1780360246000,-500.0,0.00014794,2]
[423740398,1780360246000,-2420.62,0.00015068,2]
[423740442,1780360246000,-408.35,0.00015342,2]
[423740440,1780360246000,-1034.24,0.00015342,2]
[423740438,1780360246000,-500.0,0.00015342,2]
[423740441,1780360246000,-511.53,0.00015342,2]
[423740444,1780360246000,-500.0,0.00015342,2]
[423740443,1780360246000,-500.0,0.00015342,2]
[423740450,1780360246000,-892.13,0.00015342,2]
[423740454,1780360246000,-1819.03,0.00015342,2]
[423740452,1780360246000,-500.0,0.00015342,2]
[423740453,1780360246000,-957.8,0.00015342,2]
[423740457,1780360246000,-2425.26,0.00015342,2]
[423740458,1780360246000,-500.0,0.00015342,2]
[423740459,1780360246000,-638.97,0.00015342,2]
[423740461,1780360246000,-598.65,0.00015342,2]
[423740451,1780360246000,-2426.39,0.00015342,2]
[423740455,1780360246000,-500.0,0.00015342,2]
[423740464,1780360246000,-500.0,0.00015342,2]
[423740471,1780360246000,-500.0,0.00015342,2]
[423740469,1780360246000,-500.0,0.00015342,2]
[423740470,1780360246000,-500.0,0.00015342,2]
[423740402,1780360246000,-500.0,0.00015068,2]
[423740472,1780360246000,-845.4,0.00015342,2]
[423740474,1780360246000,-600.13,0.00015342,2]
[423740437,1780360246000,-814.52,0.00015342,2]
[423740468,1780360246000,-563.81,0.00015342,2]
[423740467,1780360246000,-737.19,0.00015342,2]
[423740466,1780360246000,-1548.04,0.00015342,2]
[423740463,1780360246000,-1562.39,0.00015342,2]
[423740460,1780360246000,-500.0,0.00015342,2]
[423740456,1780360246000,-585.91,0.00015342,2]
[423740462,1780360246000,-588.59,0.00015342,2]
[423740465,1780360246000,-770.54,0.00015342,2]
[423740439,1780360246000,-500.0,0.00015342,2]
[423740473,1780360246000,-393.62933482,0.00015342,2]
[423740449,1780360246000,-623.41,0.00015342,2]
[423740436,1780360246000,-918.08,0.00015342,2]
[423740406,1780360246000,-585.91,0.00015068,2]
[423740411,1780360246000,-598.65,0.00015068,2]
[423740414,1780360246000,-500.0,0.00015068,2]
[423740412,1780360246000,-588.59,0.00015068,2]
[423740413,1780360246000,-1562.39,0.00015068,2]
[423740421,1780360246000,-486.58058973,0.00015068,2]
[423740415,1780360246000,-770.54,0.00015068,2]
[423740418,1780360246000,-563.81,0.00015068,2]
[423740416,1780360246000,-1548.04,0.00015068,2]
[423740420,1780360246000,-522.56029986,0.00015068,2]
[423740419,1780360246000,-500.0,0.00015068,2]
[423740417,1780360246000,-737.19,0.00015068,2]
[423740423,1780360246000,-500.0,0.00015068,2]
[423740431,1780360246000,-500.0,0.000152,2]
[423740410,1780360246000,-500.0,0.00015068,2]
[423740432,1780360246000,-533.44783013,0.000152,2]
[423740422,1780360246000,-500.0,0.00015068,2]
[423740445,1780360246000,-500.0,0.00015342,2]
[423740447,1780360246000,-500.0,0.00015342,2]
[423740435,1780360246000,-500.0,0.00015342,2]
[423740428,1780360246000,-500.0,0.00015068,2]
[423740430,1780360246000,-500.0,0.000152,2]
[423740446,1780360246000,-11991.94,0.00015342,2]
[423740429,1780360246000,-177.556185,0.00015186,2]
[423740427,1780360246000,-807.79,0.00015068,2]
[423740434,1780360246000,-500.0,0.00015342,2]
[423740433,1780360246000,-500.0,0.00015342,2]
[423740448,1780360246000,-2420.62,0.00015342,2]
[423740426,1780360246000,-600.13,0.00015068,2]
[423740425,1780360246000,-500.0,0.00015068,2]
[423740424,1780360246000,-845.4,0.00015068,2]
[423740506,1780360247000,-500.0,0.00015616,2]
[423740519,1780360247000,-600.13,0.00015616,2]
[423740509,1780360247000,-1562.39,0.00015616,2]
[423740510,1780360247000,-500.0,0.00015616,2]
[423740512,1780360247000,-1548.04,0.00015616,2]
[423740511,1780360247000,-770.54,0.00015616,2]
[423740514,1780360247000,-563.81,0.00015616,2]
[423740507,1780360247000,-598.65,0.00015616,2]
[423740516,1780360247000,-500.0,0.00015616,2]
[423740515,1780360247000,-500.0,0.00015616,2]
[423740517,1780360247000,-500.0,0.00015616,2]
[423740518,1780360247000,-845.4,0.00015616,2]
[423740513,1780360247000,-737.19,0.00015616,2]
[423740523,1780360247000,-163.862113,0.00015728,2]
[423740530,1780360247000,-814.52,0.0001589,2]
[423740532,1780360247000,-500.0,0.0001589,2]
[423740520,1780360247000,-807.79,0.00015616,2]
[423740531,1780360247000,-500.0,0.0001589,2]
[423740533,1780360247000,-1034.24,0.0001589,2]
[423740524,1780360247000,-167.724227,0.00015728,2]
[423740522,1780360247000,-160.0,0.00015728,2]
[423740528,1780360247000,-500.0,0.0001589,2]
[423740527,1780360247000,-492.0,0.00015765,2]
[423740525,1780360247000,-360.344,0.00015729,2]
[423740529,1780360247000,-918.08,0.0001589,2]
[423740526,1780360247000,-1000.0,0.00015765,2]
[423740508,1780360247000,-588.59,0.00015616,2]
[423740521,1780360247000,-500.0,0.00015616,2]
[423740500,1780360247000,-1819.03,0.00015616,2]
[423740486,1780360247000,-511.53,0.00015616,2]
[423740499,1780360247000,-957.8,0.00015616,2]
[423740477,1780360247000,-824.0,0.00015439,2]
[423740479,1780360247000,-355.13200451,0.00015616,2]
[423740478,1780360247000,-500.0,0.00015616,2]
[423740476,1780360247000,-500.0,0.00015342,2]
[423740475,1780360247000,-807.79,0.00015342,2]
[423740480,1780360247000,-401.3,0.00015616,2]
[423740482,1780360247000,-814.52,0.00015616,2]
[423740484,1780360247000,-500.0,0.00015616,2]
[423740481,1780360247000,-918.08,0.00015616,2]
[423740485,1780360247000,-1034.24,0.00015616,2]
[423740483,1780360247000,-500.0,0.00015616,2]
[423740488,1780360247000,-500.0,0.00015616,2]
[423740490,1780360247000,-272.82860157,0.00015616,2]
[423740487,1780360247000,-500.0,0.00015616,2]
[423740489,1780360247000,-500.0,0.00015616,2]
[423740491,1780360247000,-4062.29922733,0.00015616,2]
[423740492,1780360247000,-7656.8121711,0.00015616,2]
[423740494,1780360247000,-2420.62,0.00015616,2]
[423740503,1780360247000,-2425.26,0.00015616,2]
[423740493,1780360247000,-500.0,0.00015616,2]
[423740502,1780360247000,-585.91,0.00015616,2]
[423740504,1780360247000,-500.0,0.00015616,2]
[423740505,1780360247000,-638.97,0.00015616,2]
[423740495,1780360247000,-623.41,0.00015616,2]
[423740496,1780360247000,-892.13,0.00015616,2]
[423740497,1780360247000,-2426.39,0.00015616,2]
[423740498,1780360247000,-500.0,0.00015616,2]
[423740501,1780360247000,-500.0,0.00015616,2]
[423740534,1780360247000,-511.53,0.0001589,2]
[423740535,1780360247000,-500.0,0.0001589,2]
[423740546,1780360247000,-1819.03,0.0001589,2]
[423740575,1780360247000,-500.0,0.00016164,2]
[423740571,1780360247000,-500.0,0.00016164,2]
[423740568,1780360247000,-824.0,0.00016063,2]
[423740567,1780360247000,-500.0,0.0001589,2]
[423740573,1780360247000,-814.52,0.00016164,2]
[423740563,1780360247000,-500.0,0.0001589,2]
[423740577,1780360247000,-511.53,0.00016164,2]
[423740587,1780360247000,-500.0,0.00016164,2]
[423740588,1780360247000,-957.8,0.00016164,2]
[423740589,1780360247000,-1819.03,0.00016164,2]
[423740578,1780360247000,-500.0,0.00016164,2]
[423740579,1780360247000,-500.0,0.00016164,2]
[423740582,1780360247000,-500.0,0.00016164,2]
[423740583,1780360247000,-2420.62,0.00016164,2]
[423740580,1780360247000,-500.0,0.00016164,2]
[423740584,1780360247000,-623.41,0.00016164,2]
[423740581,1780360247000,-11991.94,0.00016164,2]
[423740585,1780360247000,-892.13,0.00016164,2]
[423740586,1780360247000,-2426.39,0.00016164,2]
[423740591,1780360247000,-585.91,0.00016164,2]
[423740592,1780360247000,-2425.26,0.00016164,2]
[423740590,1780360247000,-500.0,0.00016164,2]
[423740593,1780360247000,-500.0,0.00016164,2]
[423740595,1780360247000,-500.0,0.00016164,2]
[423740594,1780360247000,-638.97,0.00016164,2]
[423740596,1780360247000,-598.65,0.00016164,2]
[423740539,1780360247000,-500.0,0.0001589,2]
[423740569,1780360247000,-16556.566823,0.000161,2]
[423740574,1780360247000,-500.0,0.00016164,2]
[423740576,1780360247000,-1034.24,0.00016164,2]
[423740566,1780360247000,-807.79,0.0001589,2]
[423740536,1780360247000,-500.0,0.0001589,2]
[423740572,1780360247000,-918.08,0.00016164,2]
[423740538,1780360247000,-11991.94,0.0001589,2]
[423740537,1780360247000,-500.0,0.0001589,2]
[423740545,1780360247000,-957.8,0.0001589,2]
[423740540,1780360247000,-2420.62,0.0001589,2]
[423740541,1780360247000,-623.41,0.0001589,2]
[423740544,1780360247000,-500.0,0.0001589,2]
[423740547,1780360247000,-500.0,0.0001589,2]
[423740543,1780360247000,-2426.39,0.0001589,2]
[423740559,1780360247000,-737.19,0.0001589,2]
[423740548,1780360247000,-585.91,0.0001589,2]
[423740560,1780360247000,-563.81,0.0001589,2]
[423740558,1780360247000,-1548.04,0.0001589,2]
[423740542,1780360247000,-892.13,0.0001589,2]
[423740554,1780360247000,-588.59,0.0001589,2]
[423740549,1780360247000,-2425.26,0.0001589,2]
[423740551,1780360247000,-638.97,0.0001589,2]
[423740550,1780360247000,-500.0,0.0001589,2]
[423740552,1780360247000,-500.0,0.0001589,2]
[423740561,1780360247000,-500.0,0.0001589,2]
[423740557,1780360247000,-770.54,0.0001589,2]
[423740556,1780360247000,-500.0,0.0001589,2]
[423740555,1780360247000,-1562.39,0.0001589,2]
[423740562,1780360247000,-500.0,0.0001589,2]
[423740565,1780360247000,-600.13,0.0001589,2]
[423740553,1780360247000,-598.65,0.0001589,2]
[423740564,1780360247000,-845.4,0.0001589,2]
[423740570,1780360247000,-183.27802561,0.00016155,2]
[423740636,1780360248000,-1819.03,0.00016438,2]
[423740637,1780360248000,-500.0,0.00016438,2]
[423740641,1780360248000,-638.97,0.00016438,2]
[423740635,1780360248000,-957.8,0.00016438,2]
[423740638,1780360248000,-585.91,0.00016438,2]
[423740630,1780360248000,-2420.62,0.00016438,2]
[423740640,1780360248000,-500.0,0.00016438,2]
[423740634,1780360248000,-500.0,0.00016438,2]
[423740633,1780360248000,-2426.39,0.00016438,2]
[423740632,1780360248000,-892.13,0.00016438,2]
[423740643,1780360248000,-598.65,0.00016438,2]
[423740644,1780360248000,-588.59,0.00016438,2]
[423740642,1780360248000,-500.0,0.00016438,2]
[423740646,1780360248000,-500.0,0.00016438,2]
[423740659,1780360248000,-250.0,0.000167,2]
[423740656,1780360248000,-807.79,0.00016438,2]
[423740657,1780360248000,-294.951804,0.00016514,2]
[423740651,1780360248000,-500.0,0.00016438,2]
[423740649,1780360248000,-737.19,0.00016438,2]
[423740647,1780360248000,-770.54,0.00016438,2]
[423740650,1780360248000,-563.81,0.00016438,2]
[423740645,1780360248000,-1562.39,0.00016438,2]
[423740653,1780360248000,-500.0,0.00016438,2]
[423740655,1780360248000,-600.13,0.00016438,2]
[423740652,1780360248000,-500.0,0.00016438,2]
[423740654,1780360248000,-845.4,0.00016438,2]
[423740671,1780360248000,-2420.62,0.00016712,2]
[423740669,1780360248000,-11991.94,0.00016712,2]
[423740639,1780360248000,-2425.26,0.00016438,2]
[423740648,1780360248000,-1548.04,0.00016438,2]
[423740631,1780360248000,-623.41,0.00016438,2]
[423740598,1780360248000,-1562.39,0.00016164,2]
[423740618,1780360248000,-451.67862383,0.00016438,2]
[423740601,1780360248000,-1548.04,0.00016164,2]
[423740597,1780360248000,-588.59,0.00016164,2]
[423740602,1780360248000,-737.19,0.00016164,2]
[423740599,1780360248000,-500.0,0.00016164,2]
[423740600,1780360248000,-770.54,0.00016164,2]
[423740604,1780360248000,-500.0,0.00016164,2]
[423740614,1780360248000,-261.0,0.000162,2]
[423740603,1780360248000,-563.81,0.00016164,2]
[423740612,1780360248000,-250.0,0.000162,2]
[423740609,1780360248000,-807.79,0.00016164,2]
[423740610,1780360248000,-250.0,0.000162,2]
[423740607,1780360248000,-845.4,0.00016164,2]
[423740605,1780360248000,-500.0,0.00016164,2]
[423740615,1780360248000,-452.08995152,0.00016266,2]
[423740608,1780360248000,-600.13,0.00016164,2]
[423740606,1780360248000,-500.0,0.00016164,2]
[423740611,1780360248000,-250.0,0.000162,2]
[423740613,1780360248000,-250.0,0.000162,2]
[423740617,1780360248000,-824.0,0.00016399,2]
[423740629,1780360248000,-500.0,0.00016438,2]
[423740627,1780360248000,-500.0,0.00016438,2]
[423740628,1780360248000,-11991.94,0.00016438,2]
[423740616,1780360248000,-313.662956,0.0001627,2]
[423740670,1780360248000,-500.0,0.00016712,2]
[423740619,1780360248000,-918.08,0.00016438,2]
[423740623,1780360248000,-1034.24,0.00016438,2]
[423740621,1780360248000,-500.0,0.00016438,2]
[423740622,1780360248000,-500.0,0.00016438,2]
[423740620,1780360248000,-814.52,0.00016438,2]
[423740624,1780360248000,-511.53,0.00016438,2]
[423740660,1780360248000,-250.0,0.000167,2]
[423740625,1780360248000,-359.70359437,0.00016438,2]
[423740658,1780360248000,-4139.14,0.000167,2]
[423740704,1780360248000,-160.0,0.00016977,2]
[423740700,1780360248000,-228.58621907,0.00016941,2]
[423740699,1780360248000,-165.31217476,0.00016941,2]
[423740697,1780360248000,-807.79,0.00016712,2]
[423740701,1780360248000,-366.55605121,0.00016941,2]
[423740703,1780360248000,-160.0,0.00016974,2]
[423740696,1780360248000,-600.13,0.00016712,2]
[423740698,1780360248000,-1063.49201673,0.000168,30]
[423740702,1780360248000,-160.0,0.00016974,2]
[423740709,1780360248000,-1034.24,0.00016986,2]
[423740714,1780360248000,-500.0,0.00016986,2]
[423740720,1780360248000,-957.8,0.00016986,2]
[423740718,1780360248000,-2426.39,0.00016986,2]
[423740710,1780360248000,-511.53,0.00016986,2]
[423740705,1780360248000,-918.08,0.00016986,2]
[423740719,1780360248000,-500.0,0.00016986,2]
[423740708,1780360248000,-500.0,0.00016986,2]
[423740713,1780360248000,-11991.94,0.00016986,2]
[423740711,1780360248000,-585.67093704,0.00016986,2]
[423740715,1780360248000,-2420.62,0.00016986,2]
[423740717,1780360248000,-892.13,0.00016986,2]
[423740716,1780360248000,-623.41,0.00016986,2]
[423740722,1780360248000,-500.0,0.00016986,2]
[423740721,1780360248000,-1819.03,0.00016986,2]
[423740725,1780360248000,-500.0,0.00016986,2]
[423740724,1780360248000,-2425.26,0.00016986,2]
[423740726,1780360248000,-638.97,0.00016986,2]
[423740723,1780360248000,-585.91,0.00016986,2]
[423740727,1780360248000,-500.0,0.00016986,2]
[423740661,1780360248000,-918.08,0.00016712,2]
[423740712,1780360248000,-500.0,0.00016986,2]
[423740694,1780360248000,-500.0,0.00016712,2]
[423740626,1780360248000,-500.0,0.00016438,2]
[423740707,1780360248000,-500.0,0.00016986,2]
[423740665,1780360248000,-1034.24,0.00016712,2]
[423740668,1780360248000,-500.0,0.00016712,2]
[423740667,1780360248000,-500.0,0.00016712,2]
[423740662,1780360248000,-814.52,0.00016712,2]
[423740666,1780360248000,-511.53,0.00016712,2]
[423740664,1780360248000,-500.0,0.00016712,2]
[423740672,1780360248000,-623.41,0.00016712,2]
[423740674,1780360248000,-2426.39,0.00016712,2]
[423740679,1780360248000,-585.91,0.00016712,2]
[423740677,1780360248000,-1819.03,0.00016712,2]
[423740676,1780360248000,-957.8,0.00016712,2]
[423740673,1780360248000,-892.13,0.00016712,2]
[423740675,1780360248000,-500.0,0.00016712,2]
[423740678,1780360248000,-500.0,0.00016712,2]
[423740680,1780360248000,-2425.26,0.00016712,2]
[423740663,1780360248000,-500.0,0.00016712,2]
[423740682,1780360248000,-638.97,0.00016712,2]
[423740695,1780360248000,-845.4,0.00016712,2]
[423740691,1780360248000,-563.81,0.00016712,2]
[423740692,1780360248000,-542.88393569,0.00016712,2]
[423740693,1780360248000,-500.0,0.00016712,2]
[423740683,1780360248000,-500.0,0.00016712,2]
[423740690,1780360248000,-737.19,0.00016712,2]
[423740706,1780360248000,-814.52,0.00016986,2]
[423740689,1780360248000,-1548.04,0.00016712,2]
[423740681,1780360248000,-500.0,0.00016712,2]
[423740688,1780360248000,-770.54,0.00016712,2]
[423740685,1780360248000,-588.59,0.00016712,2]
[423740686,1780360248000,-1562.39,0.00016712,2]
[423740687,1780360248000,-500.0,0.00016712,2]
[423740684,1780360248000,-598.65,0.00016712,2]
[423740764,1780360249000,-577.48,0.0001726,2]
[423740771,1780360249000,-588.59,0.0001726,2]
[423740773,1780360249000,-500.0,0.0001726,2]
[423740769,1780360249000,-500.0,0.0001726,2]
[423740768,1780360249000,-638.97,0.0001726,2]
[423740755,1780360249000,-11991.94,0.0001726,2]
[423740767,1780360249000,-500.0,0.0001726,2]
[423740765,1780360249000,-585.91,0.0001726,2]
[423740766,1780360249000,-2425.26,0.0001726,2]
[423740763,1780360249000,-1819.03,0.0001726,2]
[423740756,1780360249000,-500.0,0.0001726,2]
[423740772,1780360249000,-1562.39,0.0001726,2]
[423740770,1780360249000,-598.65,0.0001726,2]
[423740775,1780360249000,-1548.04,0.0001726,2]
[423740778,1780360249000,-500.0,0.0001726,2]
[423740787,1780360249000,-10884.77407259,0.000174,2]
[423740788,1780360249000,-191.80564126,0.00017465,2]
[423740781,1780360249000,-824.0,0.00017304,2]
[423740776,1780360249000,-737.19,0.0001726,2]
[423740786,1780360249000,-1380.28074888,0.000174,2]
[423740780,1780360249000,-600.13,0.0001726,2]
[423740779,1780360249000,-845.4,0.0001726,2]
[423740782,1780360249000,-1000.0,0.00017342,2]
[423740784,1780360249000,-824.0,0.00017343,2]
[423740783,1780360249000,-791.0,0.00017342,2]
[423740785,1780360249000,-184.14409453,0.0001737,2]
[423740789,1780360249000,-330.62434951,0.00017465,2]
[423740791,1780360249000,-549.83407682,0.00017465,2]
[423740754,1780360249000,-594.97535885,0.0001726,2]
[423740774,1780360249000,-770.54,0.0001726,2]
[423740759,1780360249000,-892.13,0.0001726,2]
[423740748,1780360249000,-918.08,0.0001726,2]
[423740758,1780360249000,-623.41,0.0001726,2]
[423740733,1780360249000,-1548.04,0.00016986,2]
[423740732,1780360249000,-770.54,0.00016986,2]
[423740734,1780360249000,-737.19,0.00016986,2]
[423740728,1780360249000,-598.65,0.00016986,2]
[423740729,1780360249000,-588.59,0.00016986,2]
[423740731,1780360249000,-500.0,0.00016986,2]
[423740730,1780360249000,-1562.39,0.00016986,2]
[423740736,1780360249000,-339.45229895,0.00016986,2]
[423740737,1780360249000,-500.0,0.00016986,2]